[Event "DVM U14 2021"]
[Site "Willingen"]
[Date "2022.08.13"]
[Round "1"]
[White "Beyer, Lorenz"]
[Black "Malinowsky, Levi"]
[Result "1/2-1/2"]
[ECO "A48"]
[WhiteElo "1587"]
[BlackElo "1814"]
[Annotator "NA RC COMBH"]
[PlyCount "118"]
[EventDate "2022.08.12"]
[EventType "team-tourn"]
[EventRounds "7"]
[EventCountry "GER"]
[SourceTitle "playchess.com"]
[Source "ChessBase"]
[SourceQuality "1"]
[TimeControl "40/5400+30:1800+30"]

1. d4 {[%emt 0:00:08]} Nf6 {[%emt 0:00:00]} 2. Bf4 {[%emt 0:00:29]} d6 {[%emt 0:00:01]} 3. e3 {[%emt 0:00:18]} g6 {[%emt 0:00:05]} 4. Nf3 {[%emt 0:00:06]} Bg7 {[%emt 0:00:04]} 5. h3 {[%emt 0:00:16]} O-O {[%emt 0:00:15]} 6. Be2 {[%emt 0:00:32]} Nbd7 {[%emt 0:00:08]} 7. O-O {[%emt 0:00:19]} Qe8 {[%emt 0:01:22]} 8. c3 {[%emt 0:02:29]} e5 {[%emt 0:01:27]} 9. Bh2 {[%emt 0:02:38]} Ne4 {[%emt 0:02:55]} 10. Nbd2 {[%emt 0:00:08]} Nxd2 {[%emt 0:00:34]} 11. Nxd2 {[%emt 0:05:11]} f5 {[%emt 0:13:56]} 12. Nf3 {[%emt 0:06:14]} e4 {[%emt 0:05:33]} 13. Nd2 {[%emt 0:02:36]} Nf6 {[%emt 0:03:14]} 14. c4 {[%emt 0:04:16]} Be6 {[%emt 0:01:58]} 15. Rc1 {[%emt 0:08:39]} Rd8 {[%emt 0:08:52]} 16. Qb3 {[%emt 0:03:52]} b6 {[%emt 0:01:29]} 17. Qa3 {[%emt 0:08:17]} Qe7 $11 {[%emt 0:07:31]} 18. d5 {[%emt 0:03:02]} Bf7 {[%emt 0:01:45]} 19. Nb3 {[%emt 0:02:24]} Qd7 {[%emt 0:02:03]} 20. Nd4 {[%emt 0:03:41]} a5 {[%emt 0:01:12]} 21. Bd1 {[%emt 0:07:07]} Qe8 {[%emt 0:06:17]} 22. Ba4 {[%emt 0:01:51]} Nd7 {[%emt 0:00:29]} 23. Nc6 {[%emt 0:01:55]} Ra8 {[%emt 0:11:11]} 24. Nd4 {[%emt 0:05:00]} Qc8 {[%emt 0:02:34]} 25. Ne6 {[%emt 0:06:25]} Bxe6 {[%emt 0:00:13]} 26. dxe6 {[%emt 0:01:12]} Nc5 {[%emt 0:01:55]} 27. e7 {[%emt 0:00:24]} Re8 {[%emt 0:01:11]} 28. Bxe8 {[%emt 0:00:07]} Qxe8 {[%emt 0:00:53]} 29. Rcd1 {[%emt 0:01:46]} Qxe7 {[%emt 0:00:25]} 30. b4 {[%emt 0:02:28]} Nd3 {[%emt 0:00:07]} 31. Rxd3 {[%emt 0:00:10]} exd3 {[%emt 0:00:04]} 32. Qxd3 {[%emt 0:01:29]} Qe6 {[%emt 0:02:21]} 33. b5 {[%emt 0:01:18]} Re8 {[%emt 0:01:26]} 34. Rd1 {[%emt 0:01:13]} Qe4 {[%emt 0:02:50]} 35. Qb3 {[%emt 0:05:07]} Re6 {[%emt 0:01:03]} 36. Bf4 {[%emt 0:01:11]} h6 {[%emt 0:00:28]} 37. f3 {[%emt 0:04:42]} a4 {[%emt 0:05:37]} 38. fxe4 {[%emt 0:00:06]} axb3 {[%emt 0:00:12]} 39. exf5 {[%emt 0:02:16]} Re4 {[%emt 0:00:54]} 40. axb3 {[%emt 0:00:26]} g5 {[%emt 0:03:27]} 41. Bxd6 {[%emt 0:32:01]} cxd6 {[%emt 0:30:04]} 42. Rxd6 {[%emt 0:01:02]} Rxe3 {[%emt 0:08:29]} 43. Rxb6 {[%emt 0:03:21]} Bd4 {[%emt 0:01:26]} 44. Rg6+ {[%emt 0:00:11]} Kf7 {[%emt 0:00:30]} 45. Kf1 {[%emt 0:01:55]} Rxb3 {[%emt 0:02:17]} 46. Rxh6 {[%emt 0:00:00]} Bf6 {[%emt 0:00:00]} 47. Rh7+ {[%emt 0:00:00]} Bg7 {[%emt 0:00:00]} 48. Rh5 {[%emt 0:00:00]} Kf6 {[%emt 0:00:00]} 49. h4 {[%emt 0:00:00]} g4 {[%emt 0:00:00]} 50. Rg5 {[%emt 0:00:00]} g3 {[%emt 0:00:00]} 51. Rg6+ {[%emt 0:00:00]} Kf7 {[%emt 0:00:00]} 52. Re6 {[%emt 0:00:00]} Rb2 {[%emt 0:00:00]} 53. Re3 {[%emt 0:00:00]} Rf2+ {[%emt 0:00:00]} 54. Ke1 {[%emt 0:00:00]} Rxg2 {[%emt 0:00:00]} 55. Kf1 {[%emt 0:00:00]} Rf2+ {[%emt 0:00:00]} 56. Ke1 {[%emt 0:00:00]} Bd4 {[%emt 0:00:00]} 57. Rxg3 {[%emt 0:00:14]} Rc2 {[%emt 0:00:00]} 58. Rg4 {[%emt 0:02:18]} Rxc4 {[%emt 0:00:00]} 59. Ke2 {[%emt 0:00:57]} Rb4 1/2-1/2

[Event "DVM U14 2021"]
[Site "Willingen"]
[Date "2022.08.13"]
[Round "1"]
[White "Kiefhaber, Tobias"]
[Black "Herfurt, Manuel"]
[Result "*"]
[ECO "D30"]
[WhiteElo "1581"]
[BlackElo "1656"]
[Annotator "NA RC COMBH"]
[PlyCount "37"]
[EventDate "2022.08.12"]
[EventType "team-tourn"]
[EventRounds "7"]
[EventCountry "GER"]
[SourceTitle "playchess.com"]
[Source "ChessBase"]
[SourceQuality "1"]
[TimeControl "40/5400+30:1800+30"]

1. d4 {[%emt 0:00:03]} d5 {[%emt 0:00:06]} 2. Nf3 {[%emt 0:00:12]} Nf6 {[%emt 0:00:09]} 3. c4 {[%emt 0:01:05]} e6 {[%emt 0:01:11]} 4. Bg5 {[%emt 0:00:38]} Be7 {[%emt 0:01:10]} 5. e3 {[%emt 0:01:12]} O-O {[%emt 0:01:55]} 6. c5 {[%emt 0:02:14]} b6 {[%emt 0:05:35]} 7. b4 {[%emt 0:02:21]} a5 {[%emt 0:04:15]} 8. Bxf6 {[%emt 0:08:17]} Bxf6 {[%emt 0:00:16]} 9. cxb6 {[%emt 0:02:06]} cxb6 {[%emt 0:02:43]} 10. b5 {[%emt 0:01:24]} Nd7 {[%emt 0:02:23]} 11. a4 {[%emt 0:02:00]} Bb7 {[%emt 0:05:09]} 12. Be2 {[%emt 0:02:20]} Rc8 {[%emt 0:03:38]} 13. Nbd2 {[%emt 0:03:18]} Qe7 {[%emt 0:04:07]} 14. Qb3 {[%emt 0:01:31]} Rc7 {[%emt 0:05:37]} 15. O-O {[%emt 0:03:31]} Rfc8 {[%emt 0:00:50]} 16. Ne1 {[%emt 0:02:13]} e5 {[%emt 0:16:15]} 17. dxe5 {[%emt 0:06:11]} Bxe5 {[%emt 0:00:58]} 18. Rd1 {[%emt 0:01:00]} Rc3 {[%emt 0:03:52]} 19. Qb1 {[%emt 0:02:00]} *

[Event "DVM U14 2021"]
[Site "Willingen"]
[Date "2022.08.13"]
[Round "1"]
[White "Sökler, Jakob"]
[Black "Gloria, Fabian"]
[Result "1-0"]
[ECO "A06"]
[WhiteElo "1571"]
[BlackElo "1420"]
[Annotator "NA RC COMBH"]
[PlyCount "93"]
[EventDate "2022.08.12"]
[EventType "team-tourn"]
[EventRounds "7"]
[EventCountry "GER"]
[SourceTitle "playchess.com"]
[Source "ChessBase"]
[SourceQuality "1"]
[TimeControl "40/5400+30:1800+30"]

1. Nf3 {[%emt 0:00:06]} d5 {[%emt 0:00:15]} 2. e3 {[%emt 0:00:11]} Nf6 {[%emt 0:00:19]} 3. b3 {[%emt 0:00:17]} Bf5 {[%emt 0:00:29]} 4. Bb2 {[%emt 0:00:21]} Nbd7 {[%emt 0:00:31]} 5. Nh4 {[%emt 0:03:47]} Bg6 {[%emt 0:04:07]} 6. Nxg6 {[%emt 0:00:13]} hxg6 {[%emt 0:00:05]} 7. g3 {[%emt 0:00:21]} e6 {[%emt 0:00:45]} 8. Bg2 {[%emt 0:00:35]} Bd6 {[%emt 0:00:28]} 9. O-O {[%emt 0:04:25]} Qe7 {[%emt 0:01:01]} 10. a3 {[%emt 0:01:21]} O-O-O {[%emt 0:01:47]} 11. c4 {[%emt 0:05:28]} dxc4 {[%emt 0:01:09]} 12. bxc4 {[%emt 0:00:19]} Rh7 {[%emt 0:00:35]} 13. Qa4 {[%emt 0:10:28]} a6 {[%emt 0:02:34]} 14. Bxf6 {[%emt 0:06:46]} Qxf6 {[%emt 0:02:25]} 15. Nc3 {[%emt 0:00:33]} Nb6 {[%emt 0:05:14]} 16. Qb3 {[%emt 0:01:50]} e5 {[%emt 0:01:09]} 17. Na4 {[%emt 0:03:40]} Qe7 {[%emt 0:06:19]} 18. Nxb6+ {[%emt 0:01:56]} cxb6 {[%emt 0:00:24]} 19. Qxb6 {[%emt 0:00:38]} Bc5 {[%emt 0:00:21]} 20. Qb2 {[%emt 0:03:13]} g5 {[%emt 0:05:10]} 21. Rab1 {[%emt 0:05:28]} Rd7 {[%emt 0:02:43]} 22. Qa2 {[%emt 0:07:56]} g4 {[%emt 0:06:45]} 23. Rb3 {[%emt 0:00:45]} f5 {[%emt 0:03:21]} 24. Rfb1 {[%emt 0:02:24]} b6 {[%emt 0:00:43]} 25. Rxb6 {[%emt 0:19:14]} Bxb6 {[%emt 0:00:08]} 26. Rxb6 {[%emt 0:00:07]} Rh6 {[%emt 0:03:22]} 27. Qb1 {[%emt 0:01:15]} Rxb6 {[%emt 0:00:28]} 28. Qxb6 {[%emt 0:00:06]} Qd6 {[%emt 0:02:57]} 29. Bc6 {[%emt 0:03:39]} Qxa3 {[%emt 0:06:22]} 30. Bxd7+ {[%emt 0:00:14]} Kxd7 {[%emt 0:00:06]} 31. Qb7+ {[%emt 0:00:19]} Ke6 {[%emt 0:00:19]} 32. Kg2 {[%emt 0:00:29]} g6 {[%emt 0:01:16]} 33. Qd5+ {[%emt 0:01:42]} Ke7 {[%emt 0:02:06]} 34. Qxe5+ {[%emt 0:01:40]} Kf7 {[%emt 0:00:21]} 35. Qd5+ {[%emt 0:00:13]} Kf6 {[%emt 0:00:08]} 36. d4 {[%emt 0:00:24]} Ke7 {[%emt 0:00:49]} 37. c5 {[%emt 0:00:43]} Qa5 {[%emt 0:01:12]} 38. Qd6+ {[%emt 0:01:15]} Kf7 {[%emt 0:00:09]} 39. Qd7+ {[%emt 0:00:10]} Kf6 {[%emt 0:00:32]} 40. Qc6+ {[%emt 0:00:13]} Kf7 {[%emt 0:01:17]} 41. Qb7+ {[%emt 0:31:17]} Kf6 {[%emt 0:30:09]} 42. Qb6+ {[%emt 0:00:10]} Qxb6 {[%emt 0:00:07]} 43. cxb6 {[%emt 0:00:06]} a5 {[%emt 0:00:19]} 44. b7 {[%emt 0:00:01]} a4 {[%emt 0:00:07]} 45. b8=Q {[%emt 0:00:06]} a3 {[%emt 0:00:03]} 46. Qd6+ {[%emt 0:00:43]} Kg5 {[%emt 0:01:00]} 47. Qxa3 {[%emt 0:00:09]} 1-0

[Event "DVM U14 2021"]
[Site "Willingen"]
[Date "2022.08.13"]
[Round "1"]
[White "Goldinov, Daniel"]
[Black "Wagner, Anton"]
[Result "1/2-1/2"]
[ECO "C25"]
[WhiteElo "1546"]
[BlackElo "1479"]
[Annotator "NA RC COMBH"]
[PlyCount "61"]
[EventDate "2022.08.12"]
[EventType "team-tourn"]
[EventRounds "7"]
[EventCountry "GER"]
[SourceTitle "playchess.com"]
[Source "ChessBase"]
[SourceQuality "1"]
[TimeControl "40/5400+30:1800+30"]

1. e4 {[%emt 0:00:03]} e5 {[%emt 0:00:13]} 2. Nc3 {[%emt 0:00:05]} Nc6 {[%emt 0:00:09]} 3. Bc4 {[%emt 0:00:06]} Bc5 {[%emt 0:00:13]} 4. Qg4 {[%emt 0:02:08]} d6 {[%emt 0:21:26]} 5. Qxg7 {[%emt 0:04:32]} Qf6 {[%emt 0:00:21]} 6. Qxf6 {[%emt 0:04:16]} Nxf6 {[%emt 0:00:07]} 7. Nge2 {[%emt 0:08:35]} Be6 {[%emt 0:04:22]} 8. Bxe6 {[%emt 0:05:28]} fxe6 {[%emt 0:00:07]} 9. f4 {[%emt 0:07:58]} exf4 {[%emt 0:01:23]} 10. Nxf4 {[%emt 0:01:24]} Nd4 {[%emt 0:09:26]} 11. Kd1 {[%emt 0:07:05]} e5 {[%emt 0:02:49]} 12. Nd3 {[%emt 0:13:50]} Bb6 {[%emt 0:02:17]} 13. Rf1 {[%emt 0:02:43]} Rf8 {[%emt 0:08:46]} 14. h3 {[%emt 0:04:48]} O-O-O {[%emt 0:07:04]} 15. Ne1 {[%emt 0:04:56]} Nh5 {[%emt 0:07:37]} 16. Rxf8 {[%emt 0:01:50]} Rxf8 {[%emt 0:00:17]} 17. d3 {[%emt 0:00:27]} Rf1 {[%emt 0:11:24]} 18. Bd2 {[%emt 0:00:17]} Nf4 {[%emt 0:03:37]} 19. Bxf4 {[%emt 0:02:06]} Rxf4 {[%emt 0:00:52]} 20. Na4 {[%emt 0:05:12]} Rf2 {[%emt 0:04:30]} 21. Nxb6+ {[%emt 0:09:50]} axb6 {[%emt 0:00:07]} 22. c3 {[%emt 0:01:05]} Ne6 {[%emt 0:00:22]} 23. Rc1 {[%emt 0:04:28]} Rxb2 {[%emt 0:01:15]} 24. Rc2 {[%emt 0:00:00]} Rxc2 {[%emt 0:00:21]} 25. Kxc2 {[%emt 0:00:00]} Kd7 {[%emt 0:00:12]} 26. g3 {[%emt 0:00:47]} Ke7 {[%emt 0:04:35]} 27. Nf3 {[%emt 0:00:34]} Kf6 {[%emt 0:00:45]} 28. d4 {[%emt 0:00:44]} exd4 {[%emt 0:00:40]} 29. cxd4 {[%emt 0:01:13]} Ng5 {[%emt 0:02:46]} 30. Nxg5 {[%emt 0:01:10]} Kxg5 {[%emt 0:00:03]} 31. Kd3 {[%emt 0:00:50]} 1/2-1/2

[Event "DVM U14 2021"]
[Site "Willingen"]
[Date "2022.08.13"]
[Round "1"]
[White "Vecera, Fabio"]
[Black "Klein, Maxim"]
[Result "*"]
[ECO "D46"]
[WhiteElo "1527"]
[BlackElo "1323"]
[Annotator "NA RC COMBH"]
[PlyCount "35"]
[EventDate "2022.08.12"]
[EventType "team-tourn"]
[EventRounds "7"]
[EventCountry "GER"]
[SourceTitle "playchess.com"]
[Source "ChessBase"]
[SourceQuality "1"]
[TimeControl "40/5400+30:1800+30"]

1. Nf3 {[%emt 0:00:34]} Nf6 {[%emt 0:00:00]} 2. c4 {[%emt 0:00:52]} c6 {[%emt 0:00:32]} 3. Nc3 {[%emt 0:00:18]} d5 {[%emt 0:00:24]} 4. d4 {[%emt 0:00:33]} e6 {[%emt 0:01:15]} 5. e3 {[%emt 0:02:43]} Nbd7 {[%emt 0:04:23]} 6. Be2 {[%emt 0:02:13]} Bd6 {[%emt 0:03:52]} 7. Qc2 {[%emt 0:00:55]} O-O {[%emt 0:00:09]} 8. O-O {[%emt 0:02:27]} dxc4 {[%emt 0:02:31]} 9. Bxc4 {[%emt 0:01:09]} b5 {[%emt 0:02:44]} 10. Be2 {[%emt 0:00:54]} Qc7 {[%emt 0:15:35]} 11. b3 {[%emt 0:00:43]} e5 {[%emt 0:03:23]} 12. h3 {[%emt 0:04:04]} a6 {[%emt 0:01:42]} 13. Bb2 {[%emt 0:01:19]} c5 {[%emt 0:15:36]} 14. Rac1 {[%emt 0:02:17]} Bb7 {[%emt 0:12:19]} 15. dxe5 {[%emt 0:00:48]} Nxe5 {[%emt 0:09:01]} 16. Nxe5 {[%emt 0:01:30]} Bxe5 {[%emt 0:01:05]} 17. f4 {[%emt 0:04:08]} Bd6 {[%emt 0:00:46] -0.22} 18. Bf3 *

[Event "DVM U14 2021"]
[Site "Willingen"]
[Date "2022.08.13"]
[Round "1"]
[White "Spranger, Tobias"]
[Black "Finck, Jonathan"]
[Result "1-0"]
[ECO "D58"]
[WhiteElo "1522"]
[BlackElo "1424"]
[Annotator "NA RC COMBH"]
[PlyCount "75"]
[EventDate "2022.08.12"]
[EventType "team-tourn"]
[EventRounds "7"]
[EventCountry "GER"]
[SourceTitle "playchess.com"]
[Source "ChessBase"]
[SourceQuality "1"]
[TimeControl "40/5400+30:1800+30"]

1. d4 {[%emt 0:00:06]} d5 {[%emt 0:00:00]} 2. c4 {[%emt 0:00:13]} e6 {[%emt 0:00:00]} 3. Nc3 {[%emt 0:00:24]} Nf6 {[%emt 0:00:05]} 4. Bg5 {[%emt 0:00:21]} Be7 {[%emt 0:00:09]} 5. Nf3 {[%emt 0:00:17]} h6 {[%emt 0:00:25]} 6. Bh4 {[%emt 0:01:05]} b6 {[%emt 0:00:25]} 7. e3 {[%emt 0:00:21]} Bb7 {[%emt 0:00:54]} 8. Bd3 {[%emt 0:01:04]} dxc4 {[%emt 0:00:29]} 9. Bxc4 {[%emt 0:00:29]} O-O {[%emt 0:00:07]} 10. O-O {[%emt 0:03:04]} Nc6 {[%emt 0:01:24]} 11. Rc1 {[%emt 0:02:35]} Na5 {[%emt 0:05:21]} 12. Be2 {[%emt 0:00:44]} Nd5 {[%emt 0:03:35]} 13. Nxd5 {[%emt 0:01:47]} Bxd5 {[%emt 0:01:16]} 14. Bg3 {[%emt 0:01:50]} Bd6 {[%emt 0:01:10]} 15. b3 {[%emt 0:02:20]} Bxg3 {[%emt 0:00:39]} 16. hxg3 {[%emt 0:00:51]} Bb7 {[%emt 0:00:52]} 17. Ne5 {[%emt 0:03:27]} a6 {[%emt 0:01:29]} 18. b4 {[%emt 0:01:00]} f6 {[%emt 0:00:44]} 19. Ng6 {[%emt 0:01:46]} Nc6 {[%emt 0:00:22]} 20. Nxf8 {[%emt 0:00:39]} Kxf8 {[%emt 0:00:18]} 21. Bf3 {[%emt 0:00:46]} Qd6 {[%emt 0:00:51]} 22. a3 {[%emt 0:01:14]} Rc8 {[%emt 0:01:31]} 23. Qc2 {[%emt 0:00:48]} Nd8 {[%emt 0:00:44]} 24. Bxb7 {[%emt 0:00:03]} Nxb7 {[%emt 0:01:49]} 25. Rfd1 {[%emt 0:01:03]} f5 {[%emt 0:00:33]} 26. e4 {[%emt 0:01:46]} g6 {[%emt 0:00:52]} 27. d5 {[%emt 0:03:24]} Kf7 {[%emt 0:00:51]} 28. dxe6+ {[%emt 0:00:26]} Qxe6 {[%emt 0:00:18]} 29. exf5 {[%emt 0:01:31]} gxf5 {[%emt 0:01:16]} 30. g4 {[%emt 0:00:52]} fxg4 {[%emt 0:00:13]} 31. Qh7+ {[%emt 0:00:32]} Kf8 {[%emt 0:01:28]} 32. Rxc7 {[%emt 0:03:21]} Rxc7 {[%emt 0:00:57]} 33. Qxc7 {[%emt 0:01:46]} Qe2 {[%emt 0:00:46]} 34. Qc8+ {[%emt 0:01:51]} Kf7 {[%emt 0:00:08]} 35. Qxb7+ {[%emt 0:00:30]} Kf6 {[%emt 0:00:13]} 36. Rd6+ {[%emt 0:02:16]} Kg5 {[%emt 0:00:07]} 37. Qd5+ {[%emt 0:01:50]} Qe5 {[%emt 0:00:09]} 38. Qxe5+ {[%emt 0:01:04]} 1-0

[Event "DVM U14 2021"]
[Site "Willingen"]
[Date "2022.08.13"]
[Round "1"]
[White "Stein, Theodor"]
[Black "Braeutigam, Alexander"]
[Result "1-0"]
[ECO "B55"]
[WhiteElo "1510"]
[BlackElo "1771"]
[Annotator "NA RC COMBH"]
[PlyCount "103"]
[EventDate "2022.08.12"]
[EventType "team-tourn"]
[EventRounds "7"]
[EventCountry "GER"]
[SourceTitle "playchess.com"]
[Source "ChessBase"]
[SourceQuality "1"]
[TimeControl "40/5400+30:1800+30"]

1. e4 {[%emt 0:00:05]} c5 {[%emt 0:00:00]} 2. Nf3 {[%emt 0:00:04]} d6 {[%emt 0:00:00]} 3. d4 {[%emt 0:00:07]} cxd4 {[%emt 0:00:00]} 4. Nxd4 {[%emt 0:00:05]} Nf6 {[%emt 0:00:00]} 5. f3 {[%emt 0:00:55]} e5 {[%emt 0:00:01]} 6. Nb5 {[%emt 0:00:50]} a6 {[%emt 0:00:37]} 7. N5a3 {[%emt 0:01:27]} Be7 {[%emt 0:00:19]} 8. c4 {[%emt 0:01:00]} O-O {[%emt 0:00:14]} 9. Be3 {[%emt 0:03:06]} Be6 {[%emt 0:02:52]} 10. Nc3 {[%emt 0:04:14]} Nbd7 {[%emt 0:04:07]} 11. Qd2 {[%emt 0:01:11]} Rc8 {[%emt 0:10:46]} 12. Be2 {[%emt 0:01:38]} Nb6 {[%emt 0:00:55]} 13. Nd5 {[%emt 0:00:32]} Nbxd5 {[%emt 0:00:42]} 14. cxd5 {[%emt 0:00:13]} Bd7 {[%emt 0:01:47]} 15. O-O {[%emt 0:00:32]} b5 {[%emt 0:03:18]} 16. Rfc1 {[%emt 0:02:43]} Nh5 {[%emt 0:11:45]} 17. Rxc8 {[%emt 0:00:12]} Qxc8 {[%emt 0:00:31]} 18. Rc1 {[%emt 0:00:09]} Qb7 {[%emt 0:05:46]} 19. Nc2 {[%emt 0:03:40]} Rc8 {[%emt 0:06:14]} 20. Nb4 {[%emt 0:00:14]} a5 {[%emt 0:08:00]} 21. Nc6 {[%emt 0:01:45]} Bxc6 {[%emt 0:01:50]} 22. dxc6 {[%emt 0:00:29]} Rxc6 {[%emt 0:01:13]} 23. Rxc6 {[%emt 0:00:12]} Qxc6 {[%emt 0:00:22]} 24. Qxa5 {[%emt 0:04:02]} Nf4 {[%emt 0:03:59]} 25. Qxb5 {[%emt 0:01:15]} Qc2 {[%emt 0:03:55]} 26. Kf2 {[%emt 0:02:41]} Qb1 {[%emt 0:11:25]} 27. Bxf4 {[%emt 0:00:12]} exf4 {[%emt 0:00:08]} 28. Qb8+ {[%emt 0:00:06]} Bf8 {[%emt 0:09:45]} 29. a4 {[%emt 0:00:16]} Qc2 {[%emt 0:03:26]} 30. Qb5 {[%emt 0:01:41]} Qd2 {[%emt 0:01:10]} 31. g3 {[%emt 0:02:18]} g6 {[%emt 0:03:05]} 32. b3 {[%emt 0:13:14]} Qe3+ {[%emt 0:00:40]} 33. Kg2 {[%emt 0:01:24]} fxg3 {[%emt 0:00:26]} 34. hxg3 {[%emt 0:00:35]} h5 {[%emt 0:00:18]} 35. Qd3 {[%emt 0:00:16]} Qc5 {[%emt 0:00:10]} 36. Qd5 {[%emt 0:00:22]} Qc2 {[%emt 0:00:11]} 37. Qd3 {[%emt 0:00:29]} Qc5 {[%emt 0:00:07]} 38. Qc4 {[%emt 0:01:09]} Qg5 {[%emt 0:02:18]} 39. Qd5 {[%emt 0:01:15]} Qf6 {[%emt 0:01:24]} 40. Bc4 {[%emt 0:00:19]} g5 {[%emt 0:03:49]} 41. a5 {[%emt 0:31:11]} Qb2+ {[%emt 0:30:18]} 42. Kh3 {[%emt 0:00:13]} g4+ {[%emt 0:00:07]} 43. fxg4 {[%emt 0:00:58]} hxg4+ {[%emt 0:00:15]} 44. Kxg4 {[%emt 0:01:37]} Qg7+ {[%emt 0:00:39]} 45. Qg5 {[%emt 0:00:06]} Qxg5+ {[%emt 0:00:05]} 46. Kxg5 {[%emt 0:00:08]} Be7+ {[%emt 0:00:20]} 47. Kf5 {[%emt 0:00:09]} Bd8 {[%emt 0:00:50]} 48. b4 {[%emt 0:00:07]} Bc7 {[%emt 0:00:36]} 49. g4 {[%emt 0:00:18]} Kg7 {[%emt 0:01:04]} 50. a6 {[%emt 0:00:17]} Bb8 {[%emt 0:00:13]} 51. b5 {[%emt 0:00:08]} Ba7 {[%emt 0:00:13]} 52. e5 1-0

[Event "DVM U14 2021"]
[Site "Willingen"]
[Date "2022.08.13"]
[Round "1"]
[White "Apel, Linus"]
[Black "Reus, Nicholas"]
[Result "1/2-1/2"]
[ECO "B18"]
[WhiteElo "1488"]
[BlackElo "1663"]
[Annotator "NA RC COMBH"]
[PlyCount "74"]
[EventDate "2022.08.12"]
[EventType "team-tourn"]
[EventRounds "7"]
[EventCountry "GER"]
[SourceTitle "playchess.com"]
[Source "ChessBase"]
[SourceQuality "1"]
[TimeControl "40/5400+30:1800+30"]

1. e4 {[%emt 0:00:08]} c6 {[%emt 0:00:20]} 2. Nc3 {[%emt 0:00:06]} d5 {[%emt 0:00:10]} 3. d4 {[%emt 0:00:08]} dxe4 {[%emt 0:00:08]} 4. Nxe4 {[%emt 0:00:12]} Bf5 {[%emt 0:00:17]} 5. Ng3 {[%emt 0:00:05]} Bg6 {[%emt 0:01:02]} 6. Nf3 {[%emt 0:00:07]} Nd7 {[%emt 0:00:16]} 7. c4 {[%emt 0:00:45]} e6 {[%emt 0:01:30]} 8. Bd3 {[%emt 0:00:43]} Bxd3 {[%emt 0:00:07]} 9. Qxd3 {[%emt 0:00:42]} Ngf6 {[%emt 0:00:34]} 10. O-O {[%emt 0:00:25]} Be7 {[%emt 0:02:56]} 11. b3 {[%emt 0:01:10]} O-O {[%emt 0:00:17]} 12. Bb2 {[%emt 0:01:30]} a5 {[%emt 0:01:53]} 13. Rad1 {[%emt 0:02:52]} Qc7 {[%emt 0:04:31]} 14. Rfe1 {[%emt 0:04:25]} Rfe8 {[%emt 0:06:45]} 15. Ne4 {[%emt 0:04:13]} Nxe4 {[%emt 0:01:10]} 16. Rxe4 {[%emt 0:01:08]} Nf6 {[%emt 0:00:37]} 17. Rh4 {[%emt 0:00:42]} h6 {[%emt 0:09:54]} 18. Bc1 {[%emt 0:02:57]} Bf8 {[%emt 0:02:05]} 19. g4 {[%emt 0:10:48]} g5 {[%emt 0:01:18]} 20. Nxg5 {[%emt 0:01:07]} hxg5 {[%emt 0:01:13]} 21. Bxg5 {[%emt 0:00:57]} Bg7 {[%emt 0:08:42]} 22. Re1 {[%emt 0:03:32]} Rad8 {[%emt 0:09:34]} 23. Re3 {[%emt 0:04:58]} e5 {[%emt 0:03:10]} 24. Qf5 {[%emt 0:02:34]} Qd7 {[%emt 0:01:22]} 25. Qf3 {[%emt 0:10:57]} Qxd4 {[%emt 0:00:43]} 26. Bxf6 {[%emt 0:00:27]} Qd1+ {[%emt 0:00:42]} 27. Kg2 {[%emt 0:00:58]} Qxf3+ {[%emt 0:00:11]} 28. Rxf3 {[%emt 0:00:32]} e4 {[%emt 0:01:49]} 29. Rf5 {[%emt 0:00:20]} Bxf6 {[%emt 0:00:12]} 30. Rxf6 {[%emt 0:00:23]} Rd2 {[%emt 0:02:04]} 31. Rfh6 {[%emt 0:02:58]} Re5 {[%emt 0:02:08]} 32. Rh8+ {[%emt 0:00:05]} Kg7 {[%emt 0:00:34]} 33. R4h7+ {[%emt 0:00:55]} Kf6 {[%emt 0:00:54]} 34. Rh6+ {[%emt 0:00:41]} Ke7 {[%emt 0:00:13]} 35. Rb8 {[%emt 0:04:37]} e3 {[%emt 0:00:20]} 36. Rxb7+ {[%emt 0:00:15]} Kf8 {[%emt 0:01:17]} 37. Rf6 {[%emt 0:06:39]} e2 {[%emt 0:00:39]} 1/2-1/2